[Event "ESTCC U65 2018"]
[Site "Walbrzych"]
[Date "2018.04.21"]
[Round "8"]
[White "Kierzek, Matthias"]
[Black "Ruotanen, Helge"]
[Result "1-0"]
[ECO "A42"]
[WhiteElo "2272"]
[BlackElo "1921"]
[Annotator "NA"]
[PlyCount "35"]
[EventDate "2018.??.??"]
[EventCountry "POL"]
[SourceTitle "playchess.com"]
[Source "ChessBase"]
[SourceQuality "1"]
[WhiteTeam "Germany"]
[BlackTeam "Finland"]
[WhiteTeamCountry "GER"]
[BlackTeamCountry "FIN"]
[TimeControl "40/5400+30:1800+30"]

1. d4 {[%emt 0:00:00]} g6 {[%emt 0:00:09]} 2. c4 {[%emt 0:00:00]} Bg7 {[%emt 0:00:05]} 3. e4 {[%emt 0:00:00]} d6 {[%emt 0:00:08]} 4. Nc3 {[%emt 0:00:00]} Nc6 {[%emt 0:00:14]} 5. d5 {[%emt 0:00:00]} Nd4 {[%emt 0:00:02]} 6. Be3 {[%emt 0:00:07]} c5 {[%emt 0:00:02]} 7. Nge2 {[%emt 0:00:06]} Nxe2 {[%emt 0:01:07]} 8. Bxe2 {[%emt 0:00:10]} h5 {[%emt 0:04:22]} 9. h3 {[%emt 0:03:28]} Bxc3+ {[%emt 0:05:13]} 10. bxc3 {[%emt 0:00:08]} e5 {[%emt 0:00:08]} 11. Qd2 {[%emt 0:02:55]} Nf6 {[%emt 0:01:23]} 12. Bg5 {[%emt 0:02:04]} Kf8 {[%emt 0:01:10]} 13. f4 {[%emt 0:09:13]} Kg7 {[%emt 0:00:26]} 14. fxe5 {[%emt 0:00:59]} dxe5 {[%emt 0:17:15]} 15. Rf1 {[%emt 0:00:29]} Nxe4 {[%emt 0:00:23]} 16. Bxd8 {[%emt 0:00:07]} Nxd2 {[%emt 0:00:05]} 17. Bf6+ {[%emt 0:00:07]} Kg8 {[%emt 0:00:03]} 18. Kxd2 $18 {[%emt 0:00:10]} 1-0

[Event "ESTCC U65 2018"]
[Site "Walbrzych"]
[Date "2018.04.21"]
[Round "8"]
[White "Kolbak, Jens"]
[Black "Just, Joachim"]
[Result "1/2-1/2"]
[ECO "C00"]
[WhiteElo "2213"]
[BlackElo "1928"]
[Annotator "NA"]
[PlyCount "50"]
[EventDate "2018.??.??"]
[EventCountry "POL"]
[SourceTitle "playchess.com"]
[Source "ChessBase"]
[SourceQuality "1"]
[WhiteTeam "Denmark"]
[BlackTeam "Germany"]
[WhiteTeamCountry "DEN"]
[BlackTeamCountry "GER"]
[TimeControl "40/5400+30:1800+30"]

1. e4 {[%emt 0:00:00]} e6 {[%emt 0:00:14]} 2. Qe2 {[%emt 0:00:00]} Be7 {[%emt 0:00:27]} 3. b3 {[%emt 0:00:26]} b6 {[%emt 0:02:01]} 4. Bb2 {[%emt 0:00:50]} Nf6 {[%emt 0:01:18]} 5. e5 {[%emt 0:01:13]} Nd5 {[%emt 0:03:34]} 6. c4 {[%emt 0:02:42]} Nb4 {[%emt 0:01:08]} 7. d4 {[%emt 0:00:58]} Bb7 {[%emt 0:01:39]} 8. a3 {[%emt 0:01:10]} N4a6 {[%emt 0:00:34]} 9. Nc3 {[%emt 0:04:19]} d6 {[%emt 0:07:05]} 10. Rd1 {[%emt 0:01:55]} Nd7 {[%emt 0:02:59]} 11. Nf3 {[%emt 0:07:26]} Qc8 {[%emt 0:02:55]} 12. exd6 {[%emt 0:05:45]} cxd6 {[%emt 0:01:48]} 13. Qe3 $14 {[%emt 0:00:56]} Nc7 {[%emt 0:04:17]} 14. Be2 {[%emt 0:04:54]} Nf6 {[%emt 0:03:29]} 15. O-O {[%emt 0:01:34]} Qd7 {[%emt 0:03:34]} 16. Rfe1 {[%emt 0:06:35]} h6 {[%emt 0:03:23]} 17. Bd3 {[%emt 0:06:10]} Kf8 {[%emt 0:04:11]} 18. b4 {[%emt 0:06:13]} Nce8 {[%emt 0:03:30]} 19. h3 {[%emt 0:04:40]} Rc8 {[%emt 0:02:41]} 20. Bf1 {[%emt 0:01:30]} Rg8 {[%emt 0:01:48]} 21. Nd2 {[%emt 0:04:22]} g5 {[%emt 0:04:41]} 22. Nb5 {[%emt 0:01:43]} Ba8 {[%emt 0:02:36]} 23. Nc3 {[%emt 0:00:33]} Bb7 {[%emt 0:01:50]} 24. Be2 {[%emt 0:00:42]} Ng7 {[%emt 0:01:16]} 25. Bf3 {[%emt 0:03:37]} Nf5 {[%emt 0:02:55]} 1/2-1/2

[Event "ESTCC U65 2018"]
[Site "Walbrzych"]
[Date "2018.04.21"]
[Round "8"]
[White "Vinke, Dietmar"]
[Black "Hammar, Bengt"]
[Result "1/2-1/2"]
[ECO "D85"]
[WhiteElo "2170"]
[BlackElo "2133"]
[Annotator "NA"]
[PlyCount "150"]
[EventDate "2018.??.??"]
[EventCountry "POL"]
[SourceTitle "playchess.com"]
[Source "ChessBase"]
[SourceQuality "1"]
[WhiteTeam "Finland"]
[BlackTeam "Sweden"]
[WhiteTeamCountry "FIN"]
[BlackTeamCountry "SWE"]
[TimeControl "40/5400+30:1800+30"]

1. d4 {[%emt 0:00:00]} Nf6 {[%emt 0:00:36]} 2. c4 {[%emt 0:00:00]} g6 {[%emt 0:00:39]} 3. Nc3 {[%emt 0:00:00]} d5 {[%emt 0:00:40]} 4. cxd5 {[%emt 0:00:05]} Nxd5 {[%emt 0:00:08]} 5. Bd2 {[%emt 0:00:06]} Bg7 {[%emt 0:01:56]} 6. Nf3 {[%emt 0:02:28]} O-O {[%emt 0:03:30]} 7. e3 {[%emt 0:00:13]} c5 {[%emt 0:03:37]} 8. Rc1 {[%emt 0:12:43]} cxd4 {[%emt 0:05:52]} 9. Nxd4 {[%emt 0:16:19] LiveBook: 3 Games} e5 $11 {[%emt 0:10:18]} 10. Nf3 {[%emt 0:02:20]} Nb4 {[%emt 0:01:53]} 11. a3 {[%emt 0:16:00]} Nd3+ {[%emt 0:00:44]} 12. Bxd3 {[%emt 0:00:06]} Qxd3 {[%emt 0:00:08]} 13. Qe2 {[%emt 0:00:13]} Qxe2+ {[%emt 0:05:06]} 14. Nxe2 {[%emt 0:11:37]} b6 {[%emt 0:05:47]} 15. O-O {[%emt 0:05:12]} Ba6 {[%emt 0:02:46]} 16. Rfe1 {[%emt 0:00:07]} Nd7 {[%emt 0:00:34]} 17. Ng3 {[%emt 0:04:09]} Rfc8 {[%emt 0:07:34]} 18. Rxc8+ {[%emt 0:03:54]} Rxc8 {[%emt 0:01:43]} 19. Rc1 {[%emt 0:00:04]} Rxc1+ {[%emt 0:00:37]} 20. Bxc1 {[%emt 0:00:06]} Nc5 {[%emt 0:00:22]} 21. b4 {[%emt 0:00:17]} Nd3 {[%emt 0:02:21]} 22. Bd2 {[%emt 0:00:07]} f5 {[%emt 0:02:06]} 23. Bc3 {[%emt 0:01:15]} Bf6 {[%emt 0:04:54]} 24. Nd2 {[%emt 0:05:37]} Kf7 {[%emt 0:01:51]} 25. f3 {[%emt 0:10:27]} Bb5 {[%emt 0:01:40]} 26. Nh1 {[%emt 0:02:18]} Bg5 {[%emt 0:03:08]} 27. Nf1 {[%emt 0:00:08]} Ke6 {[%emt 0:01:06]} 28. g3 {[%emt 0:00:24]} Nc1 {[%emt 0:00:49]} 29. Bb2 {[%emt 0:01:16]} Nd3 {[%emt 0:01:42]} 30. Bc3 {[%emt 0:00:07]} Kd5 {[%emt 0:07:11]} 31. f4 {[%emt 0:01:26]} Be7 {[%emt 0:01:18]} 32. Nd2 {[%emt 0:01:47]} g5 {[%emt 0:06:04]} 33. Nf2 {[%emt 0:01:23]} exf4 {[%emt 0:01:46]} 34. exf4 {[%emt 0:00:18]} Nc1 {[%emt 0:00:53]} 35. Be5 {[%emt 0:01:46]} a5 {[%emt 0:00:29]} 36. bxa5 {[%emt 0:00:18]} bxa5 {[%emt 0:00:03]} 37. Bc7 {[%emt 0:00:49]} a4 {[%emt 0:01:58]} 38. Nb1 {[%emt 0:00:06]} gxf4 {[%emt 0:01:57]} 39. gxf4 {[%emt 0:00:10]} Nd3 {[%emt 0:03:58]} 40. Nc3+ {[%emt 0:00:00]} Kc4 {[%emt 0:00:02]} 41. Nxb5 {[%emt 0:06:05]} Nxf2 {[%emt 0:00:11]} 42. Nd6+ {[%emt 0:01:37]} Bxd6 {[%emt 0:00:11]} 43. Bxd6 {[%emt 0:00:05]} Ne4 {[%emt 0:00:11]} 44. Bf8 {[%emt 0:01:48]} Kb3 {[%emt 0:02:41]} 45. Kg2 {[%emt 0:01:54]} Nd2 {[%emt 0:00:22]} 46. Kh3 {[%emt 0:00:11]} Nc4 {[%emt 0:00:05]} 47. Kh4 {[%emt 0:00:13]} Nxa3 {[%emt 0:00:06]} 48. Kg5 {[%emt 0:00:10]} Nc2 {[%emt 0:00:05]} 49. Kxf5 {[%emt 0:00:42]} Nb4 {[%emt 0:00:07]} 50. Ke6 {[%emt 0:00:39]} a3 {[%emt 0:00:42]} 51. f5 {[%emt 0:01:01]} a2 {[%emt 0:00:10]} 52. Bg7 {[%emt 0:00:09]} Nd3 {[%emt 0:00:21]} 53. Ba1 {[%emt 0:00:06]} Kc2 {[%emt 0:00:53]} 54. f6 {[%emt 0:00:21]} Kb1 {[%emt 0:00:29]} 55. f7 {[%emt 0:05:28]} Kxa1 {[%emt 0:02:53]} 56. f8=Q {[%emt 0:00:15]} Kb2 {[%emt 0:01:19]} 57. Qf6+ {[%emt 0:10:26]} Kb1 {[%emt 0:03:07]} 58. Qc3 {[%emt 0:05:28]} Nc1 {[%emt 0:01:14]} 59. Qb4+ {[%emt 0:01:59]} Kc2 {[%emt 0:00:14]} 60. Qe4+ {[%emt 0:00:53]} Kb2 {[%emt 0:00:33]} 61. Qxh7 {[%emt 0:01:01]} a1=Q {[%emt 0:00:38]} 62. Qg7+ {[%emt 0:00:13]} Kb1 {[%emt 0:00:08]} 63. Qxa1+ {[%emt 0:00:03]} Kxa1 {[%emt 0:00:02]} 64. h4 {[%emt 0:00:13]} Ne2 {[%emt 0:00:48]} 65. Kf5 {[%emt 0:00:46]} Kb2 {[%emt 0:00:16]} 66. Kg4 {[%emt 0:00:10]} Nd4 {[%emt 0:06:15]} 67. h5 {[%emt 0:00:12]} Ne6 {[%emt 0:00:32]} 68. h6 {[%emt 0:00:51]} Nf8 {[%emt 0:00:05]} 69. Kf5 {[%emt 0:00:44]} Kc3 {[%emt 0:00:10]} 70. Kf6 {[%emt 0:00:05]} Kd4 {[%emt 0:00:52]} 71. Kg7 {[%emt 0:01:55]} Ne6+ {[%emt 0:00:08]} 72. Kf7 {[%emt 0:00:08]} Ke5 {[%emt 0:00:20]} 73. h7 {[%emt 0:00:12]} Ng5+ {[%emt 0:00:01]} 74. Kg6 {[%emt 0:00:12]} Nxh7 {[%emt 0:00:18]} 75. Kxh7 {[%emt 0:00:00]} Ke4 1/2-1/2

[Event "ESTCC U65 2018"]
[Site "Walbrzych"]
[Date "2018.04.21"]
[Round "8"]
[White "Malmdin, Nils-Ake"]
[Black "Hurme, Harri"]
[Result "1/2-1/2"]
[ECO "C47"]
[WhiteElo "2154"]
[BlackElo "2229"]
[Annotator "NA"]
[PlyCount "128"]
[EventDate "2018.??.??"]
[EventCountry "POL"]
[SourceTitle "playchess.com"]
[Source "ChessBase"]
[SourceQuality "1"]
[WhiteTeam "Sweden"]
[BlackTeam "Finland"]
[WhiteTeamCountry "SWE"]
[BlackTeamCountry "FIN"]
[TimeControl "40/5400+30:1800+30"]

1. e4 {[%emt 0:00:00]} e5 {[%emt 0:00:10]} 2. Nf3 {[%emt 0:00:00]} Nc6 {[%emt 0:00:03]} 3. Nc3 {[%emt 0:00:29]} Nf6 {[%emt 0:00:22]} 4. a3 {[%emt 0:00:12]} Be7 {[%emt 0:05:29]} 5. d4 {[%emt 0:06:26]} exd4 {[%emt 0:01:58]} 6. Nxd4 {[%emt 0:00:21]} O-O {[%emt 0:03:05]} 7. Be2 {[%emt 0:05:12]} d5 {[%emt 0:03:32]} 8. Nxc6 {[%emt 0:01:40]} bxc6 {[%emt 0:00:11]} 9. e5 {[%emt 0:00:41]} Nd7 {[%emt 0:03:13]} 10. Bf4 {[%emt 0:05:19]} Re8 {[%emt 0:02:15]} 11. Qd2 $15 {[%emt 0:10:38]} Nf8 {[%emt 0:08:21]} 12. O-O {[%emt 0:05:46]} Ng6 {[%emt 0:02:00]} 13. Bg3 {[%emt 0:03:45]} f6 {[%emt 0:04:21]} 14. exf6 {[%emt 0:03:52]} Bxf6 {[%emt 0:00:04]} 15. Rfe1 {[%emt 0:01:38]} Be6 {[%emt 0:05:00]} 16. Na4 {[%emt 0:02:49]} Bf7 {[%emt 0:04:37]} 17. Qa5 {[%emt 0:04:01]} Be5 {[%emt 0:02:08]} 18. Bxe5 {[%emt 0:02:09]} Rxe5 {[%emt 0:00:49]} 19. Bf1 {[%emt 0:03:01]} Qd6 {[%emt 0:02:45]} 20. Rxe5 {[%emt 0:00:59]} Nxe5 {[%emt 0:00:13]} 21. Qb4 {[%emt 0:08:02]} Bg6 {[%emt 0:02:30]} 22. Qxd6 {[%emt 0:08:29]} cxd6 {[%emt 0:01:12]} 23. Rc1 {[%emt 0:00:10]} Re8 {[%emt 0:02:57]} 24. b3 {[%emt 0:00:30]} Nd7 {[%emt 0:04:13]} 25. Nb2 {[%emt 0:00:37]} Kf7 {[%emt 0:03:11]} 26. Bd3 {[%emt 0:01:56]} c5 {[%emt 0:01:24]} 27. Bxg6+ {[%emt 0:00:22]} Kxg6 {[%emt 0:00:20]} 28. Kf1 {[%emt 0:00:06]} Kf5 {[%emt 0:03:07]} 29. Rd1 {[%emt 0:00:46]} Nb6 {[%emt 0:00:49]} 30. Re1 {[%emt 0:05:22]} Rxe1+ {[%emt 0:02:08]} 31. Kxe1 {[%emt 0:00:02]} d4 {[%emt 0:01:44]} 32. Kd2 {[%emt 0:03:53]} d5 {[%emt 0:02:48]} 33. Nd3 {[%emt 0:02:19]} c4 {[%emt 0:00:50]} 34. Nc1 {[%emt 0:01:57]} Nd7 {[%emt 0:06:18]} 35. Ne2 {[%emt 0:06:21]} Ke5 {[%emt 0:00:19]} 36. Nc1 {[%emt 0:01:05]} Nc5 {[%emt 0:01:14]} 37. f3 {[%emt 0:00:36]} a5 {[%emt 0:01:39]} 38. b4 {[%emt 0:03:13]} axb4 {[%emt 0:02:46]} 39. axb4 {[%emt 0:00:01]} Ne6 {[%emt 0:00:47]} 40. Ne2 {[%emt 0:00:00]} g5 {[%emt 0:01:28]} 41. g3 {[%emt 0:09:14]} Nc7 {[%emt 0:01:51]} 42. f4+ {[%emt 0:04:25]} gxf4 {[%emt 0:00:49]} 43. gxf4+ {[%emt 0:00:10]} Ke4 {[%emt 0:01:39]} 44. f5 {[%emt 0:00:28]} c3+ {[%emt 0:01:53]} 45. Kd1 {[%emt 0:00:33]} Kxf5 {[%emt 0:02:10]} 46. Nxd4+ {[%emt 0:01:22]} Ke4 {[%emt 0:00:16]} 47. Ne2 {[%emt 0:01:10]} Nb5 {[%emt 0:00:53]} 48. Ke1 {[%emt 0:04:39]} d4 {[%emt 0:02:22]} 49. Kd1 {[%emt 0:06:02]} Kf3 {[%emt 0:03:31]} 50. Ng3 {[%emt 0:01:46]} Kg4 {[%emt 0:00:48]} 51. Ke2 {[%emt 0:01:05]} h5 {[%emt 0:01:13]} 52. Kd3 {[%emt 0:01:04]} h4 {[%emt 0:00:21]} 53. Ne2 {[%emt 0:01:12]} Kh3 {[%emt 0:09:11]} 54. Nxd4 {[%emt 0:00:07]} Kxh2 {[%emt 0:00:32]} 55. Nf3+ Kg3 {[%emt 0:00:14]} 56. Nxh4 {[%emt 0:00:13]} Kxh4 {[%emt 0:00:13]} 57. Kc4 {[%emt 0:00:02]} Nd6+ {[%emt 0:01:35]} 58. Kxc3 {[%emt 0:00:03]} Kg5 {[%emt 0:04:25]} 59. Kd4 {[%emt 0:00:05]} Kf6 {[%emt 0:00:23]} 60. Kc5 {[%emt 0:01:57]} Ke5 {[%emt 0:01:36]} 61. Kc6 {[%emt 0:03:03]} Nc4 {[%emt 0:00:46]} 62. b5 {[%emt 0:00:28]} Kd4 {[%emt 0:00:16]} 63. b6 {[%emt 0:01:37]} Nxb6 {[%emt 0:00:09]} 64. Kxb6 {[%emt 0:00:11]} Kc3 {[%emt 0:00:12]} 1/2-1/2

[Event "ESTCC U65 2018"]
[Site "Walbrzych"]
[Date "2018.04.21"]
[Round "8"]
[White "Staechelin, Ruedi"]
[Black "Lisenko, Alexander V"]
[Result "0-1"]
[ECO "B30"]
[WhiteElo "2091"]
[BlackElo "2368"]
[Annotator "NA RC"]
[PlyCount "58"]
[EventDate "2018.??.??"]
[EventCountry "POL"]
[SourceTitle "playchess.com"]
[Source "ChessBase"]
[SourceQuality "1"]
[WhiteTeam "Switzerland"]
[BlackTeam "Russia"]
[WhiteTeamCountry "SUI"]
[BlackTeamCountry "RUS"]
[TimeControl "40/5400+30:1800+30"]

1. e4 {[%emt 0:00:00]} c5 {[%emt 0:00:05]} 2. Nf3 {[%emt 0:00:00]} Nc6 {[%emt 0:00:06]} 3. Bb5 {[%emt 0:00:03]} Nf6 {[%emt 0:00:05]} 4. d3 {[%emt 0:04:02]} Qa5+ {[%emt 0:01:54] B30: Sicilian: 2...Nc6 3 Bb5, lines without ...g6} 5. Nc3 {[%emt 0:00:16]} Nd4 {[%emt 0:00:35]} 6. Bc4 {[%emt 0:12:43]} b5 {[%emt 0:00:30]} 7. e5 {[%emt 0:00:23]} bxc4 {[%emt 0:17:41]} 8. exf6 {[%emt 0:00:29]} cxd3 {[%emt 0:00:17]} 9. cxd3 {[%emt 0:05:19]} Bb7 $146 {[%emt 0:08:08]} ({Predecessor:} 9... gxf6 10. Bd2 Bb7 11. Nxd4 cxd4 12. Ne4 {0-1 (38) Lehmann,K (2336)-Naiditsch,A (2720) Magdeburg 2015}) 10. fxe7 {[%emt 0:07:09]} Bxe7 {[%emt 0:01:05]} 11. O-O {[%emt 0:08:36]} Nxf3+ {[%emt 0:00:30]} 12. gxf3 {[%emt 0:00:15]} O-O {[%emt 0:00:26]} 13. Kg2 {[%emt 0:10:34]} Qb6 {[%emt 0:03:53]} 14. Rg1 {[%emt 0:05:16]} Qg6+ {[%emt 0:07:30]} 15. Kh1 {[%emt 0:05:29]} Qh5 {[%emt 0:04:44]} 16. Ne4 {[%emt 0:01:47]} Bc6 {[%emt 0:02:02]} 17. Bf4 {[%emt 0:02:30]} f5 {[%emt 0:06:34]} 18. Nd2 {[%emt 0:05:47]} Bf6 {[%emt 0:11:16]} 19. Rb1 {[%emt 0:01:51]} Rfe8 {[%emt 0:04:54]} 20. Rg3 {[%emt 0:04:09]} h6 {[%emt 0:02:23]} 21. Qf1 {[%emt 0:04:27]} Re6 {[%emt 0:03:16]} 22. Qg2 $19 {[%emt 0:00:38]} Rae8 {[%emt 0:05:06]} 23. Rg1 {[%emt 0:00:26]} g5 {[%emt 0:01:05]} 24. Be3 {[%emt 0:06:29]} d6 {[%emt 0:02:28]} 25. h4 {[%emt 0:01:49]} Kf8 {[%emt 0:03:39]} 26. Rh3 {[%emt 0:03:35]} g4 {[%emt 0:01:40]} 27. Ne4 {[%emt 0:00:52]} gxh3 {[%emt 0:02:38]} 28. Qg8+ {[%emt 0:03:51]} Ke7 {[%emt 0:00:06]} 29. Qh7+ {[%emt 0:00:43]} Qf7 {[%emt 0:00:20]} 0-1

[Event "ESTCC U65 2018"]
[Site "Walbrzych"]
[Date "2018.04.21"]
[Round "8"]
[White "Scrimgour, Alan"]
[Black "Gromark, Per-Olof"]
[Result "1/2-1/2"]
[ECO "B22"]
[WhiteElo "2083"]
[BlackElo "1901"]
[Annotator "NA"]
[PlyCount "27"]
[EventDate "2018.??.??"]
[EventCountry "POL"]
[SourceTitle "playchess.com"]
[Source "ChessBase"]
[SourceQuality "1"]
[WhiteTeam "Scotland"]
[BlackTeam "Sweden"]
[WhiteTeamCountry "SCO"]
[BlackTeamCountry "SWE"]
[TimeControl "40/5400+30:1800+30"]

1. e4 {[%emt 0:00:00]} c5 {[%emt 0:00:08]} 2. c3 {[%emt 0:00:00]} Nf6 {[%emt 0:00:22]} 3. e5 {[%emt 0:00:00]} Nd5 {[%emt 0:00:04]} 4. d4 {[%emt 0:00:00]} cxd4 {[%emt 0:00:06]} 5. cxd4 {[%emt 0:00:00]} e6 {[%emt 0:00:16]} 6. Nf3 {[%emt 0:00:00]} d6 {[%emt 0:00:17]} 7. Bc4 {[%emt 0:00:39]} Be7 {[%emt 0:00:15]} 8. O-O {[%emt 0:02:19]} O-O {[%emt 0:00:07]} 9. Qe2 {[%emt 0:08:40]} b6 {[%emt 0:04:45]} 10. Qe4 {[%emt 0:16:00]} Ba6 {[%emt 0:02:30]} 11. Bxa6 {[%emt 0:05:58]} Nxa6 {[%emt 0:00:12]} 12. Bd2 {[%emt 0:03:35]} Rc8 {[%emt 0:06:07]} 13. Nc3 {[%emt 0:04:15]} dxe5 $11 {[%emt 0:05:36]} 14. Nxd5 {[%emt 0:02:18]} 1/2-1/2

[Event "ESTCC U65 2018"]
[Site "Walbrzych"]
[Date "2018.04.21"]
[Round "8"]
[White "Carlsten, Peter"]
[Black "Meskanen, Vesa"]
[Result "1/2-1/2"]
[ECO "B75"]
[WhiteElo "2010"]
[BlackElo "2066"]
[Annotator "NA"]
[PlyCount "69"]
[EventDate "2018.??.??"]
[EventCountry "POL"]
[SourceTitle "playchess.com"]
[Source "ChessBase"]
[SourceQuality "1"]
[WhiteTeam "Sweden"]
[BlackTeam "Finland"]
[WhiteTeamCountry "SWE"]
[BlackTeamCountry "FIN"]
[TimeControl "40/5400+30:1800+30"]

1. e4 {[%emt 0:00:00]} c5 {[%emt 0:00:10]} 2. Nf3 {[%emt 0:00:06]} d6 {[%emt 0:00:08]} 3. d4 {[%emt 0:01:13]} cxd4 {[%emt 0:00:08]} 4. Nxd4 {[%emt 0:00:11]} Nf6 {[%emt 0:00:13]} 5. Nc3 {[%emt 0:00:21]} g6 {[%emt 0:00:24]} 6. Be3 {[%emt 0:00:31]} Bg7 {[%emt 0:00:05]} 7. f3 {[%emt 0:00:13]} Nc6 {[%emt 0:01:47]} 8. Qd2 {[%emt 0:00:54]} h5 {[%emt 0:01:01] LiveBook: 73 Games} 9. O-O-O {[%emt 0:02:40]} Bd7 {[%emt 0:02:57]} 10. Kb1 {[%emt 0:01:10]} a6 {[%emt 0:03:12]} 11. a3 {[%emt 0:03:04]} b5 {[%emt 0:05:56]} 12. Be2 {[%emt 0:03:20]} Ne5 {[%emt 0:11:34]} 13. h3 {[%emt 0:04:03]} Rb8 {[%emt 0:05:38]} 14. f4 {[%emt 0:03:17]} Nc4 $14 {[%emt 0:04:22]} 15. Bxc4 {[%emt 0:01:41]} bxc4 {[%emt 0:00:03]} 16. Qe2 {[%emt 0:02:31]} Qc7 {[%emt 0:07:48]} 17. Bc1 {[%emt 0:01:51]} e5 {[%emt 0:06:58]} 18. Nf3 {[%emt 0:01:03]} O-O {[%emt 0:00:58]} 19. fxe5 {[%emt 0:10:56]} dxe5 {[%emt 0:01:01]} 20. Rhf1 {[%emt 0:01:36]} Qa5 {[%emt 0:07:40]} 21. Ka2 {[%emt 0:04:26]} Rb7 {[%emt 0:06:16]} 22. Ng5 {[%emt 0:01:39]} Rfb8 {[%emt 0:15:18]} 23. Nd5 {[%emt 0:06:07]} c3 {[%emt 0:02:04]} 24. b3 {[%emt 0:04:19]} Nxd5 {[%emt 0:05:22]} 25. Rxd5 {[%emt 0:00:23]} Bb5 {[%emt 0:00:26]} 26. Qf3 {[%emt 0:01:38]} Qc7 {[%emt 0:00:21]} 27. Rfd1 {[%emt 0:01:01]} Bc6 {[%emt 0:00:46]} 28. Rc5 {[%emt 0:02:32]} Rb5 {[%emt 0:03:37]} 29. Rxc6 {[%emt 0:04:14]} Qxc6 {[%emt 0:00:15]} 30. Qxf7+ {[%emt 0:00:04]} Kh8 {[%emt 0:00:09]} 31. Rd7 {[%emt 0:00:07]} Qf6 {[%emt 0:00:46]} 32. Qc4 {[%emt 0:00:33]} Rf8 {[%emt 0:01:25]} 33. Nf7+ {[%emt 0:07:03]} Kh7 {[%emt 0:00:08]} 34. Ng5+ {[%emt 0:03:33]} Kh8 {[%emt 0:00:11]} 35. Nf7+ 1/2-1/2

[Event "ESTCC U65 2018"]
[Site "Walbrzych"]
[Date "2018.04.21"]
[Round "8"]
[White "Wademark, Helge"]
[Black "Patola, Eero"]
[Result "1-0"]
[ECO "B01"]
[WhiteElo "2005"]
[BlackElo "1823"]
[Annotator "NA"]
[PlyCount "143"]
[EventDate "2018.??.??"]
[EventCountry "POL"]
[SourceTitle "playchess.com"]
[Source "ChessBase"]
[SourceQuality "1"]
[WhiteTeam "Sweden"]
[BlackTeam "Finland"]
[WhiteTeamCountry "SWE"]
[BlackTeamCountry "FIN"]
[TimeControl "40/5400+30:1800+30"]

1. e4 {[%emt 0:00:00]} d5 {[%emt 0:00:30]} 2. exd5 {[%emt 0:00:00]} Nf6 {[%emt 0:00:12]} 3. Bb5+ {[%emt 0:00:45]} Bd7 {[%emt 0:00:17]} 4. Bc4 {[%emt 0:00:02]} b5 {[%emt 0:00:26]} 5. Bb3 {[%emt 0:00:31]} Bg4 {[%emt 0:00:42]} 6. f3 {[%emt 0:01:14]} Bc8 {[%emt 0:00:16]} 7. d4 {[%emt 0:09:56]} Nxd5 {[%emt 0:03:26]} 8. Ne2 {[%emt 0:00:15]} e6 {[%emt 0:02:42]} 9. O-O {[%emt 0:03:39]} Bd6 {[%emt 0:04:53]} 10. Nbc3 {[%emt 0:03:40]} Nxc3 {[%emt 0:05:33]} 11. Nxc3 {[%emt 0:01:48]} O-O {[%emt 0:00:29]} 12. Nxb5 {[%emt 0:04:44]} Ba6 {[%emt 0:03:26]} 13. Bc4 {[%emt 0:01:09]} Bxb5 {[%emt 0:06:12]} 14. Bxb5 {[%emt 0:00:04]} Qh4 $16 {[%emt 0:01:03]} (14... c6 $142 15. Bd3 Nd7) 15. f4 {[%emt 0:00:42]} Rd8 {[%emt 0:03:38]} 16. Qf3 {[%emt 0:02:27]} c6 {[%emt 0:01:55]} 17. Bd3 {[%emt 0:00:26]} a5 {[%emt 0:06:03]} 18. c3 {[%emt 0:04:04]} Ra7 {[%emt 0:01:01]} 19. Be3 {[%emt 0:01:06]} Rc7 {[%emt 0:01:50]} 20. Rad1 {[%emt 0:01:32]} Nd7 {[%emt 0:01:28]} 21. g3 {[%emt 0:02:26]} Qe7 {[%emt 0:00:25]} 22. a3 {[%emt 0:03:04]} Nf6 {[%emt 0:02:50]} 23. f5 {[%emt 0:10:37]} Rb8 24. Bc1 {[%emt 0:01:41]} c5 {[%emt 0:13:53]} 25. fxe6 {[%emt 0:01:19]} Qxe6 {[%emt 0:02:16]} 26. d5 {[%emt 0:02:52]} Qg4 {[%emt 0:09:18]} 27. c4 {[%emt 0:05:46]} Qxf3 {[%emt 0:02:19]} 28. Rxf3 {[%emt 0:00:14]} Re7 {[%emt 0:02:04]} 29. Rff1 {[%emt 0:08:42]} Ng4 {[%emt 0:03:48]} 30. Rde1 {[%emt 0:01:48]} Rxe1 {[%emt 0:01:26]} 31. Rxe1 {[%emt 0:00:03]} Ne5 {[%emt 0:00:39]} 32. Be2 {[%emt 0:02:10]} f6 {[%emt 0:02:04]} 33. Kf2 {[%emt 0:00:49]} Kf7 {[%emt 0:00:52]} 34. Ke3 g6 {[%emt 0:04:06]} 35. Kd2 {[%emt 0:02:32]} Nd7 {[%emt 0:02:28]} 36. Kc2 {[%emt 0:03:36]} Be5 {[%emt 0:00:35]} 37. Bd3 {[%emt 0:00:21]} Rb6 {[%emt 0:00:59]} 38. b3 {[%emt 0:01:25]} a4 {[%emt 0:03:29]} 39. bxa4 {[%emt 0:00:41]} Ra6 {[%emt 0:01:01]} 40. Kb3 {[%emt 0:00:00]} Rb6+ {[%emt 0:01:10]} 41. Ka2 {[%emt 0:00:30]} Ra6 {[%emt 0:00:21]} 42. Bc2 {[%emt 0:00:45]} Nb6 {[%emt 0:00:33]} 43. Bb3 {[%emt 0:00:19]} Nxa4 {[%emt 0:00:49]} 44. Bxa4 {[%emt 0:00:50]} Rxa4 {[%emt 0:00:29]} 45. Re4 {[%emt 0:00:17]} Ke7 {[%emt 0:07:45]} 46. Bb2 {[%emt 0:01:51]} Kd6 {[%emt 0:00:18]} 47. Bxe5+ {[%emt 0:00:18]} fxe5 {[%emt 0:00:47]} 48. Kb3 {[%emt 0:00:23]} Ra7 {[%emt 0:00:34]} 49. Re2 {[%emt 0:00:28]} Rb7+ {[%emt 0:01:39]} 50. Kc3 {[%emt 0:00:04]} Ra7 {[%emt 0:00:19]} 51. Ra2 {[%emt 0:00:10]} e4 {[%emt 0:00:53]} 52. a4 {[%emt 0:00:11]} Ra5 {[%emt 0:00:54]} 53. Kd2 {[%emt 0:00:14]} Ke5 {[%emt 0:01:33]} 54. Ke3 {[%emt 0:00:02]} h5 {[%emt 0:01:17]} 55. h3 {[%emt 0:00:12]} Kf5 {[%emt 0:01:26]} 56. g4+ {[%emt 0:01:40]} hxg4 {[%emt 0:00:59]} 57. hxg4+ {[%emt 0:00:10]} Ke5 {[%emt 0:00:05]} 58. Ra1 Ra8 {[%emt 0:09:43]} 59. a5 {[%emt 0:00:24]} Rh8 {[%emt 0:00:12]} 60. a6 {[%emt 0:00:12]} Rh3+ {[%emt 0:00:39]} 61. Kf2 {[%emt 0:00:18]} Rh2+ {[%emt 0:01:26]} 62. Kg3 {[%emt 0:00:38]} Rh8 {[%emt 0:00:17]} 63. a7 {[%emt 0:00:06]} Ra8 {[%emt 0:00:13]} 64. Kf2 {[%emt 0:00:21]} Kd4 {[%emt 0:03:40]} 65. d6 {[%emt 0:00:20]} Kd3 {[%emt 0:00:47]} 66. d7 {[%emt 0:01:51]} Kd2 {[%emt 0:00:25]} 67. Ra2+ {[%emt 0:00:27]} Kd3 {[%emt 0:02:20]} 68. d8=Q+ {[%emt 0:00:14]} Rxd8 {[%emt 0:00:24]} 69. a8=Q {[%emt 0:00:17]} e3+ {[%emt 0:01:08]} 70. Ke1 {[%emt 0:00:11]} Rxa8 71. Rxa8 {[%emt 0:00:04]} Kxc4 {[%emt 0:01:48]} 72. Rd8 {[%emt 0:00:06] Kd5} 1-0